[Event "Titled Tuesday Blitz November 07 Late 2023"]
[White "Haitin, Ilja"]
[Black "Nita, Lucian"]
[WhiteFideId "4501764"]
[BlackFideId "1206923"]
[WhiteElo "2395"]
[BlackElo "2307"]
[Result "1/2-1/2"]
[Round "10"]
[TimeControl "180+1"]
[Date "2023.11.07"]
[WhiteClock "0:00:14"]
[BlackClock "0:00:51"]
[Board "80"]

1. Nf3 {[%clk 0:03:00]}  d6 {[%clk 0:03:00]} 2. d4 {[%clk 0:02:58]}  Nd7 {[%clk 0:03:00]} 3. b3 {[%clk 0:02:56]}  e5 {[%clk 0:03:01]} 4. dxe5 {[%clk 0:02:56]}  Nxe5 {[%clk 0:03:00]} 5. Nxe5 {[%clk 0:02:54]}  dxe5 {[%clk 0:03:00]} 6. Qxd8+ {[%clk 0:02:53]}  Kxd8 {[%clk 0:03:01]} 7. Bb2 {[%clk 0:02:54]}  f6 {[%clk 0:03:01]} 8. Nc3 {[%clk 0:02:54]}  Be6 {[%clk 0:03:00]} 9. O-O-O+ {[%clk 0:02:55]}  Ke8 {[%clk 0:02:59]} 10. g3 {[%clk 0:02:54]}  c6 {[%clk 0:02:59]} 11. Bg2 {[%clk 0:02:55]}  Rd8 {[%clk 0:02:58]} 12. f4 {[%clk 0:02:53]}  exf4 {[%clk 0:02:56]} 13. gxf4 {[%clk 0:02:53]}  Bc5 {[%clk 0:02:56]} 14. Kb1 {[%clk 0:02:45]}  Be3 {[%clk 0:02:50]} 15. Rxd8+ {[%clk 0:02:42]}  Kxd8 {[%clk 0:02:50]} 16. Rf1 {[%clk 0:02:42]}  Ne7 {[%clk 0:02:48]} 17. Nd1 {[%clk 0:02:40]}  Bc5 {[%clk 0:02:47]} 18. e4 {[%clk 0:02:40]}  Kc7 {[%clk 0:02:41]} 19. Nf2 {[%clk 0:02:39]}  Rd8 {[%clk 0:02:40]} 20. Nd3 {[%clk 0:02:39]}  Bb6 {[%clk 0:02:32]} 21. f5 {[%clk 0:02:31]}  Bf7 {[%clk 0:02:31]} 22. e5 {[%clk 0:02:31]}  fxe5 {[%clk 0:02:23]} 23. Bxe5+ {[%clk 0:02:30]}  Kc8 {[%clk 0:02:19]} 24. Bxg7 {[%clk 0:02:29]}  Rg8 {[%clk 0:02:15]} 25. f6 {[%clk 0:02:29]}  Nd5 {[%clk 0:02:12]} 26. Ne5 {[%clk 0:02:26]}  Be6 {[%clk 0:01:45]} 27. f7 {[%clk 0:02:11]}  Bxf7 {[%clk 0:01:33]} 28. Rxf7 {[%clk 0:02:12]}  Bd4 {[%clk 0:01:29]} 29. Nxc6 {[%clk 0:01:51]}  bxc6 {[%clk 0:00:58]} 30. Bxd5 {[%clk 0:01:42]}  Rxg7 {[%clk 0:00:51]} 31. Rxg7 {[%clk 0:01:39]}  Bxg7 {[%clk 0:00:50]} 32. Bxc6 {[%clk 0:01:40]}  Kc7 {[%clk 0:00:51]} 33. Be4 {[%clk 0:01:38]}  h6 {[%clk 0:00:50]} 34. c4 {[%clk 0:01:36]}  Be5 {[%clk 0:00:48]} 35. h3 {[%clk 0:01:31]}  a5 {[%clk 0:00:48]} 36. a3 {[%clk 0:01:31]}  Bd6 {[%clk 0:00:47]} 37. Kb2 {[%clk 0:01:30]}  Kb6 {[%clk 0:00:47]} 38. Bg6 {[%clk 0:01:27]}  Be7 {[%clk 0:00:46]} 39. Be8 {[%clk 0:01:27]}  Bf8 {[%clk 0:00:46]} 40. Bd7 {[%clk 0:01:27]}  Kc5 {[%clk 0:00:46]} 41. Kc3 {[%clk 0:01:24]}  Bg7+ {[%clk 0:00:46]} 42. Kd3 {[%clk 0:01:21]}  Bb2 {[%clk 0:00:45]} 43. a4 {[%clk 0:01:05]}  Kb4 {[%clk 0:00:45]} 44. Kc2 {[%clk 0:01:05]}  Bf6 {[%clk 0:00:45]} 45. Bg4 {[%clk 0:01:03]}  Bg5 {[%clk 0:00:44]} 46. Bd1 {[%clk 0:01:03]}  Be7 {[%clk 0:00:43]} 47. Kd3 {[%clk 0:01:03]}  Kc5 {[%clk 0:00:43]} 48. Ke4 {[%clk 0:01:03]}  Bg5 {[%clk 0:00:42]} 49. Kf5 {[%clk 0:01:02]}  Bd2 {[%clk 0:00:42]} 50. h4 {[%clk 0:01:00]}  Kd4 {[%clk 0:00:36]} 51. Ke6 {[%clk 0:00:58]}  Kc5 {[%clk 0:00:36]} 52. h5 {[%clk 0:00:57]}  Bc1 {[%clk 0:00:36]} 53. Bf3 {[%clk 0:00:55]}  Bd2 {[%clk 0:00:36]} 54. Bd5 {[%clk 0:00:55]}  Bc1 {[%clk 0:00:36]} 55. Kd7 {[%clk 0:00:55]}  Bd2 {[%clk 0:00:36]} 56. Kc7 {[%clk 0:00:55]}  Bc3 {[%clk 0:00:36]} 57. Kb7 {[%clk 0:00:55]}  Bd2 {[%clk 0:00:36]} 58. Ka6 {[%clk 0:00:55]}  Bc3 {[%clk 0:00:36]} 59. Bg8 {[%clk 0:00:54]}  Bd2 {[%clk 0:00:35]} 60. Kb7 {[%clk 0:00:54]}  Be3 {[%clk 0:00:35]} 61. Kc7 {[%clk 0:00:51]}  Bd2 {[%clk 0:00:35]} 62. Kd7 {[%clk 0:00:51]}  Bc1 {[%clk 0:00:35]} 63. Ke6 {[%clk 0:00:47]}  Bd2 {[%clk 0:00:35]} 64. Ke5 {[%clk 0:00:47]}  Bc3+ {[%clk 0:00:33]} 65. Ke4 {[%clk 0:00:47]}  Bd2 {[%clk 0:00:34]} 66. Bf7 {[%clk 0:00:44]}  Bb4 {[%clk 0:00:32]} 67. Be8 {[%clk 0:00:43]}  Ba3 {[%clk 0:00:32]} 68. Kf5 {[%clk 0:00:42]}  Bc1 {[%clk 0:00:32]} 69. Bd7 {[%clk 0:00:42]}  Bd2 {[%clk 0:00:32]} 70. Kg6 {[%clk 0:00:42]}  Bc1 {[%clk 0:00:33]} 71. Be8 {[%clk 0:00:42]}  Kb4 {[%clk 0:00:32]} 72. Bf7 {[%clk 0:00:40]}  Kc5 {[%clk 0:00:31]} 73. Kf5 {[%clk 0:00:40]}  Bd2 {[%clk 0:00:31]} 74. Ke4 {[%clk 0:00:40]}  Bc1 {[%clk 0:00:32]} 75. Bg8 {[%clk 0:00:40]}  Bg5 {[%clk 0:00:32]} 76. Kd3 {[%clk 0:00:39]}  Bc1 {[%clk 0:00:33]} 77. Kc3 {[%clk 0:00:39]}  Bg5 {[%clk 0:00:33]} 78. b4+ {[%clk 0:00:37]}  axb4+ {[%clk 0:00:33]} 79. Kb3 {[%clk 0:00:38]}  Bd8 {[%clk 0:00:32]} 80. Bf7 {[%clk 0:00:28]}  Ba5 {[%clk 0:00:33]} 81. Be8 {[%clk 0:00:28]}  Bb6 {[%clk 0:00:34]} 82. Bb5 {[%clk 0:00:28]}  Ba5 {[%clk 0:00:35]} 83. Kb2 {[%clk 0:00:28]}  Bc7 {[%clk 0:00:35]} 84. Kc2 {[%clk 0:00:29]}  Ba5 {[%clk 0:00:36]} 85. Kd3 {[%clk 0:00:29]}  b3 {[%clk 0:00:36]} 86. Be8 {[%clk 0:00:24]}  Kb4 {[%clk 0:00:35]} 87. c5 {[%clk 0:00:21]}  Kxc5 {[%clk 0:00:33]} 88. Bf7 {[%clk 0:00:20]}  Kb4 {[%clk 0:00:33]} 89. Ke4 {[%clk 0:00:10]}  Kxa4 {[%clk 0:00:33]} 90. Kf5 {[%clk 0:00:09]}  b2 {[%clk 0:00:30]} 91. Ba2 {[%clk 0:00:09]}  Bd2 {[%clk 0:00:30]} 92. Kg4 {[%clk 0:00:08]}  Ka3 {[%clk 0:00:30]} 93. Bb1 {[%clk 0:00:08]}  Kb4 {[%clk 0:00:30]} 94. Kh3 {[%clk 0:00:07]}  Kc3 {[%clk 0:00:31]} 95. Kg2 {[%clk 0:00:08]}  Kd4 {[%clk 0:00:31]} 96. Kh1 {[%clk 0:00:08]}  Ke3 {[%clk 0:00:32]} 97. Ba2 {[%clk 0:00:08]}  Kf3 {[%clk 0:00:32]} 98. Bb1 {[%clk 0:00:08]}  Kg4 {[%clk 0:00:32]} 99. Ba2 {[%clk 0:00:08]}  Kxh5 {[%clk 0:00:32]} 100. Bb1 {[%clk 0:00:08]}  Kg5 {[%clk 0:00:32]} 101. Bh7 {[%clk 0:00:08]}  h5 {[%clk 0:00:32]} 102. Bb1 {[%clk 0:00:08]}  h4 {[%clk 0:00:33]} 103. Bc2 {[%clk 0:00:09]}  Kf4 {[%clk 0:00:34]} 104. Bb1 {[%clk 0:00:09]}  Kg3 {[%clk 0:00:34]} 105. Bc2 {[%clk 0:00:10]}  Kf2 {[%clk 0:00:34]} 106. Bb1 {[%clk 0:00:10]}  Ke1 {[%clk 0:00:35]} 107. Bc2 {[%clk 0:00:10]}  Be3 {[%clk 0:00:35]} 108. Bf5 {[%clk 0:00:11]}  Bf2 {[%clk 0:00:35]} 109. Bg6 {[%clk 0:00:11]}  Bg3 {[%clk 0:00:36]} 110. Bh7 {[%clk 0:00:11]}  Kd2 {[%clk 0:00:37]} 111. Bb1 {[%clk 0:00:11]}  Kc1 {[%clk 0:00:38]} 112. Be4 {[%clk 0:00:10]}  Be1 {[%clk 0:00:38]} 113. Bf5 {[%clk 0:00:11]}  Kd2 {[%clk 0:00:39]} 114. Bg6 {[%clk 0:00:10]}  Kc3 {[%clk 0:00:40]} 115. Bf5 {[%clk 0:00:10]}  Kd4 {[%clk 0:00:41]} 116. Bg6 {[%clk 0:00:09]}  Bd2 {[%clk 0:00:41]} 117. Bb1 {[%clk 0:00:09]}  Bg5 {[%clk 0:00:42]} 118. Bc2 {[%clk 0:00:09]}  Ke3 {[%clk 0:00:43]} 119. Bb1 {[%clk 0:00:10]}  Kd2 {[%clk 0:00:44]} 120. Bf5 {[%clk 0:00:10]}  Kc1 {[%clk 0:00:45]} 121. Bg6 {[%clk 0:00:10]}  b1=Q {[%clk 0:00:46]} 122. Bxb1 {[%clk 0:00:10]}  Kxb1 {[%clk 0:00:46]} 123. Kg2 {[%clk 0:00:10]}  Kc2 {[%clk 0:00:47]} 124. Kh1 {[%clk 0:00:10]}  Kd2 {[%clk 0:00:48]} 125. Kg1 {[%clk 0:00:11]}  Ke3 {[%clk 0:00:48]} 126. Kh1 {[%clk 0:00:12]}  Kf3 {[%clk 0:00:49]} 127. Kg1 {[%clk 0:00:12]}  Kg3 {[%clk 0:00:49]} 128. Kh1 {[%clk 0:00:13]}  Kh3 {[%clk 0:00:50]} 129. Kg1 {[%clk 0:00:13]}  Kg3 {[%clk 0:00:51]} 130. Kh1 {[%clk 0:00:14]}  Be3 {[%clk 0:00:51]} 1/2-1/2


[Site "https://www.chess.com"]

[Event "Titled Tuesday Blitz November 07 Late 2023"]
[White "Chemin, Justo Reinaldo"]
[Black "PapaieDudu"]
[WhiteFideId "2101580"]
[WhiteElo "2208"]
[BlackElo "2367"]
[Result "1-0"]
[Round "10"]
[TimeControl "180+1"]
[Date "2023.11.07"]
[WhiteClock "0:00:19"]
[BlackClock "0:00:00"]
[Board "82"]

1. d4 {[%clk 0:03:00]}  d5 {[%clk 0:02:40]} 2. c4 {[%clk 0:02:58]}  e6 {[%clk 0:02:39]} 3. Nc3 {[%clk 0:02:58]}  Nf6 {[%clk 0:02:40]} 4. Bg5 {[%clk 0:02:54]}  dxc4 {[%clk 0:02:40]} 5. e4 {[%clk 0:02:51]}  a6 {[%clk 0:02:39]} 6. Bxc4 {[%clk 0:02:47]}  b5 {[%clk 0:02:39]} 7. Bb3 {[%clk 0:02:44]}  Bb7 {[%clk 0:02:36]} 8. d5 {[%clk 0:02:22]}  exd5 {[%clk 0:02:27]} 9. Nxd5 {[%clk 0:02:11]}  Nbd7 {[%clk 0:02:11]} 10. f3 {[%clk 0:01:42]}  h6 {[%clk 0:02:07]} 11. Nxf6+ {[%clk 0:01:36]}  Nxf6 {[%clk 0:02:02]} 12. Qxd8+ {[%clk 0:01:35]}  Rxd8 {[%clk 0:02:03]} 13. Bxf6 {[%clk 0:01:35]}  gxf6 {[%clk 0:02:03]} 14. Ne2 {[%clk 0:01:35]}  Rg8 {[%clk 0:01:57]} 15. g3 {[%clk 0:01:29]}  Bb4+ {[%clk 0:01:16]} 16. Nc3 {[%clk 0:01:23]}  Bxc3+ {[%clk 0:01:16]} 17. bxc3 {[%clk 0:01:22]}  Rd3 {[%clk 0:01:16]} 18. Ke2 {[%clk 0:01:16]}  Rxc3 {[%clk 0:01:13]} 19. Rac1 {[%clk 0:01:16]}  Rxc1 {[%clk 0:01:04]} 20. Rxc1 {[%clk 0:01:16]}  c6 {[%clk 0:01:03]} 21. Ke3 {[%clk 0:01:14]}  Ke7 {[%clk 0:01:03]} 22. Kd4 {[%clk 0:01:12]}  Rd8+ {[%clk 0:00:58]} 23. Kc5 {[%clk 0:01:11]}  Rd2 {[%clk 0:00:57]} 24. Kb6 {[%clk 0:01:10]}  Rd7 {[%clk 0:00:31]} 25. Rc5 {[%clk 0:00:58]}  Bc8 {[%clk 0:00:20]} 26. Rh5 {[%clk 0:00:56]}  f5 {[%clk 0:00:13]} 27. exf5 {[%clk 0:00:54]}  Rd3 {[%clk 0:00:12]} 28. f4 {[%clk 0:00:46]}  Bd7 {[%clk 0:00:08]} 29. g4 {[%clk 0:00:40]}  a5 {[%clk 0:00:03]} 30. Rxh6 {[%clk 0:00:37]}  a4 {[%clk 0:00:03]} 31. Bxf7 {[%clk 0:00:35]}  Kxf7 {[%clk 0:00:02]} 32. Rh7+ {[%clk 0:00:35]}  Ke8 {[%clk 0:00:03]} 33. f6 {[%clk 0:00:34]}  Rf3 {[%clk 0:00:03]} 34. g5 {[%clk 0:00:29]}  Rxf4 {[%clk 0:00:03]} 35. h4 {[%clk 0:00:29]}  b4 {[%clk 0:00:03]} 36. Re7+ {[%clk 0:00:26]}  Kd8 {[%clk 0:00:03]} 37. h5 {[%clk 0:00:21]}  b3 {[%clk 0:00:02]} 38. axb3 {[%clk 0:00:21]}  axb3 {[%clk 0:00:03]} 39. Re2 {[%clk 0:00:19]}  Bg4 {[%clk 0:00:02]} 40. Rd2+ {[%clk 0:00:19]}  Ke8 {[%clk 0:00:00]} 41. h6 {[%clk 0:00:19]} 1-0


[Site "https://www.chess.com"]

[Event "Titled Tuesday Blitz November 07 Late 2023"]
[White "Tokat, Nehir"]
[Black "Becerra, Juan David"]
[WhiteFideId "34557555"]
[BlackFideId "4404998"]
[WhiteElo "2203"]
[BlackElo "2358"]
[Result "1-0"]
[Round "10"]
[TimeControl "180+1"]
[Date "2023.11.07"]
[WhiteClock "0:02:24"]
[BlackClock "0:01:34"]
[Board "83"]

1. d4 {[%clk 0:03:00]}  e6 {[%clk 0:03:00]} 2. c4 {[%clk 0:02:56]}  Nf6 {[%clk 0:03:01]} 3. Nf3 {[%clk 0:02:55]}  c5 {[%clk 0:03:01]} 4. d5 {[%clk 0:02:54]}  exd5 {[%clk 0:03:01]} 5. cxd5 {[%clk 0:02:55]}  d6 {[%clk 0:03:00]} 6. Nc3 {[%clk 0:02:49]}  a6 {[%clk 0:02:56]} 7. a4 {[%clk 0:02:46]}  g6 {[%clk 0:02:54]} 8. Bf4 {[%clk 0:02:46]}  Bg7 {[%clk 0:02:53]} 9. h3 {[%clk 0:02:44]}  O-O {[%clk 0:02:52]} 10. e3 {[%clk 0:02:44]}  Re8 {[%clk 0:02:47]} 11. Be2 {[%clk 0:02:44]}  b6 {[%clk 0:02:19]} 12. Nd2 {[%clk 0:02:38]}  Bb7 {[%clk 0:02:11]} 13. Nc4 {[%clk 0:02:38]}  Bf8 {[%clk 0:01:54]} 14. O-O {[%clk 0:02:33]}  Qd7 {[%clk 0:01:34]} 15. Nxb6 {[%clk 0:02:24]} 1-0


[Site "https://www.chess.com"]

[Event "Titled Tuesday Blitz November 07 Late 2023"]
[White "Harriott, Tyrell"]
[Black "Kniazev, Igor"]
[WhiteFideId "2086484"]
[BlackFideId "4136349"]
[WhiteElo "2345"]
[BlackElo "2195"]
[Result "1-0"]
[Round "10"]
[TimeControl "180+1"]
[Date "2023.11.07"]
[WhiteClock "0:01:37"]
[BlackClock "0:00:43"]
[Board "85"]

1. d4 {[%clk 0:02:57]}  Nf6 {[%clk 0:02:59]} 2. e3 {[%clk 0:02:57]}  c5 {[%clk 0:02:59]} 3. c3 {[%clk 0:02:56]}  d5 {[%clk 0:02:58]} 4. Bd3 {[%clk 0:02:56]}  c4 {[%clk 0:02:56]} 5. Bc2 {[%clk 0:02:56]}  Nc6 {[%clk 0:02:56]} 6. f4 {[%clk 0:02:56]}  Bg4 {[%clk 0:02:53]} 7. Ne2 {[%clk 0:02:55]}  Ne4 {[%clk 0:02:46]} 8. Nd2 {[%clk 0:02:52]}  f5 {[%clk 0:02:39]} 9. O-O {[%clk 0:02:51]}  e6 {[%clk 0:02:38]} 10. Nf3 {[%clk 0:02:50]}  Qf6 {[%clk 0:02:28]} 11. Qe1 {[%clk 0:02:50]}  Be7 {[%clk 0:02:27]} 12. b3 {[%clk 0:02:47]}  b5 {[%clk 0:02:11]} 13. a4 {[%clk 0:02:44]}  bxa4 {[%clk 0:02:05]} 14. bxc4 {[%clk 0:02:43]}  dxc4 {[%clk 0:01:59]} 15. Bxa4 {[%clk 0:02:43]}  Rc8 {[%clk 0:01:57]} 16. Ne5 {[%clk 0:02:42]}  Bxe2 {[%clk 0:01:50]} 17. Qxe2 {[%clk 0:02:43]}  Nxc3 {[%clk 0:01:49]} 18. Qxc4 {[%clk 0:02:34]}  Nxa4 {[%clk 0:01:33]} 19. Qxa4 {[%clk 0:02:35]}  O-O {[%clk 0:01:14]} 20. Nxc6 {[%clk 0:02:31]}  Bd6 {[%clk 0:01:13]} 21. Ba3 {[%clk 0:02:20]}  e5 {[%clk 0:01:03]} 22. dxe5 {[%clk 0:02:13]}  Bxe5 {[%clk 0:01:01]} 23. Ne7+ {[%clk 0:02:03]}  Kh8 {[%clk 0:00:58]} 24. fxe5 {[%clk 0:02:02]}  Qxe5 {[%clk 0:00:55]} 25. Nxc8 {[%clk 0:01:57]}  Qxe3+ {[%clk 0:00:54]} 26. Kh1 {[%clk 0:01:55]}  Rxc8 {[%clk 0:00:55]} 27. Bb2 {[%clk 0:01:50]}  Rc7 {[%clk 0:00:43]} 28. Rae1 {[%clk 0:01:37]} 1-0


[Site "https://www.chess.com"]

[Event "Titled Tuesday Blitz November 07 Late 2023"]
[White "Melikhov, Evgeny V."]
[Black "Ismayilova, Khanim"]
[WhiteFideId "4122046"]
[BlackFideId "13429019"]
[WhiteElo "2362"]
[BlackElo "2163"]
[Result "1-0"]
[Round "10"]
[TimeControl "180+1"]
[Date "2023.11.07"]
[WhiteClock "0:00:03"]
[BlackClock "0:00:07"]
[Board "89"]

1. d4 {[%clk 0:03:00]}  d5 {[%clk 0:02:59]} 2. c4 {[%clk 0:02:59]}  e6 {[%clk 0:03:00]} 3. Nc3 {[%clk 0:02:57]}  Nf6 {[%clk 0:03:00]} 4. cxd5 {[%clk 0:02:57]}  exd5 {[%clk 0:02:59]} 5. Bg5 {[%clk 0:02:56]}  Be7 {[%clk 0:02:58]} 6. e3 {[%clk 0:02:56]}  O-O {[%clk 0:02:57]} 7. Bd3 {[%clk 0:02:56]}  c6 {[%clk 0:02:56]} 8. Qc2 {[%clk 0:02:56]}  Nbd7 {[%clk 0:02:52]} 9. Nf3 {[%clk 0:02:55]}  Re8 {[%clk 0:02:49]} 10. O-O {[%clk 0:02:55]}  Nf8 {[%clk 0:02:48]} 11. h3 {[%clk 0:02:56]}  Be6 {[%clk 0:02:40]} 12. Ne5 {[%clk 0:02:55]}  Ne4 {[%clk 0:02:35]} 13. Bxe7 {[%clk 0:02:31]}  Qxe7 {[%clk 0:02:34]} 14. f4 {[%clk 0:02:28]}  Nxc3 {[%clk 0:02:33]} 15. bxc3 {[%clk 0:02:25]}  f6 {[%clk 0:02:28]} 16. Nf3 {[%clk 0:02:21]}  Bxh3 {[%clk 0:01:56]} 17. gxh3 {[%clk 0:02:21]}  Qxe3+ {[%clk 0:01:57]} 18. Kh1 {[%clk 0:02:15]}  Qxf4 {[%clk 0:01:57]} 19. Nh2 {[%clk 0:02:12]}  Qg3 {[%clk 0:01:52]} 20. Rf3 {[%clk 0:02:07]}  Re1+ {[%clk 0:01:47]} 21. Rxe1 {[%clk 0:02:06]}  Qxe1+ {[%clk 0:01:45]} 22. Rf1 {[%clk 0:02:01]}  Qg3 {[%clk 0:01:45]} 23. Bf5 {[%clk 0:01:26]}  Re8 {[%clk 0:01:39]} 24. Rg1 {[%clk 0:01:14]}  Qf4 {[%clk 0:01:30]} 25. Rf1 {[%clk 0:01:10]}  Qg3 {[%clk 0:01:27]} 26. Rg1 {[%clk 0:00:47]}  Qf4 {[%clk 0:01:25]} 27. Qg2 {[%clk 0:00:39]}  Re7 {[%clk 0:01:19]} 28. Qf3 {[%clk 0:00:33]}  Qd2 {[%clk 0:01:13]} 29. Ng4 {[%clk 0:00:29]}  Kh8 {[%clk 0:01:03]} 30. Rg2 {[%clk 0:00:27]}  Re1+ {[%clk 0:00:57]} 31. Kh2 {[%clk 0:00:26]}  Qc1 {[%clk 0:00:57]} 32. Nf2 {[%clk 0:00:24]}  Re3 {[%clk 0:00:51]} 33. Qg4 {[%clk 0:00:21]}  Re7 {[%clk 0:00:50]} 34. Nd3 {[%clk 0:00:19]}  Qxc3 {[%clk 0:00:42]} 35. Nf4 {[%clk 0:00:19]}  Qe3 {[%clk 0:00:31]} 36. Qh4 {[%clk 0:00:18]}  Qe1 {[%clk 0:00:19]} 37. Qxe1 {[%clk 0:00:11]}  Rxe1 {[%clk 0:00:18]} 38. Rb2 {[%clk 0:00:10]}  b6 {[%clk 0:00:17]} 39. Rc2 {[%clk 0:00:10]}  c5 {[%clk 0:00:16]} 40. dxc5 {[%clk 0:00:10]}  Rf1 {[%clk 0:00:16]} 41. Kg3 {[%clk 0:00:10]}  bxc5 {[%clk 0:00:14]} 42. Rxc5 {[%clk 0:00:10]}  d4 {[%clk 0:00:13]} 43. Rc8 {[%clk 0:00:10]}  g6 {[%clk 0:00:10]} 44. Rxf8+ {[%clk 0:00:08]}  Kg7 {[%clk 0:00:11]} 45. Ne6+ {[%clk 0:00:09]}  Kh6 {[%clk 0:00:11]} 46. Bd3 {[%clk 0:00:08]}  Rd1 {[%clk 0:00:11]} 47. Bc4 {[%clk 0:00:07]}  d3 {[%clk 0:00:11]} 48. Rd8 {[%clk 0:00:07]}  d2 {[%clk 0:00:11]} 49. Kf2 {[%clk 0:00:06]}  Rh1 {[%clk 0:00:10]} 50. Rxd2 {[%clk 0:00:04]}  Rh2+ {[%clk 0:00:10]} 51. Ke1 {[%clk 0:00:03]}  Rh1+ {[%clk 0:00:09]} 52. Ke2 {[%clk 0:00:03]}  Rxh3 {[%clk 0:00:10]} 53. Bd3 {[%clk 0:00:02]}  Rh2+ {[%clk 0:00:10]} 54. Ke3 {[%clk 0:00:02]}  Rh1 {[%clk 0:00:10]} 55. Nf4 {[%clk 0:00:02]}  Re1+ {[%clk 0:00:09]} 56. Be2 {[%clk 0:00:02]}  g5 {[%clk 0:00:08]} 57. Rd6 {[%clk 0:00:02]}  gxf4+ {[%clk 0:00:08]} 58. Kf2 {[%clk 0:00:02]}  Ra1 {[%clk 0:00:05]} 59. Rxf6+ {[%clk 0:00:02]}  Kg5 {[%clk 0:00:06]} 60. Rf7 {[%clk 0:00:03]}  Rxa2 {[%clk 0:00:06]} 61. Rxh7 {[%clk 0:00:03]}  Kg6 {[%clk 0:00:06]} 62. Rh4 {[%clk 0:00:02]}  Kg5 {[%clk 0:00:07]} 63. Rh5+ {[%clk 0:00:03]}  Kg6 {[%clk 0:00:07]} 64. Rc5 {[%clk 0:00:03]}  Ra3 {[%clk 0:00:06]} 65. Bf3 {[%clk 0:00:03]}  a5 {[%clk 0:00:07]} 66. Rc6+ {[%clk 0:00:03]}  Kg5 {[%clk 0:00:07]} 67. Rc5+ {[%clk 0:00:03]}  Kh4 {[%clk 0:00:07]} 68. Rh5# {[%clk 0:00:03]} 1-0


[Site "https://www.chess.com"]

[Event "Titled Tuesday Blitz November 07 Late 2023"]
[White "katharinareinecke"]
[Black "KorolDimitriy75"]
[WhiteElo "1954"]
[BlackElo "2321"]
[Result "0-1"]
[Round "10"]
[TimeControl "180+1"]
[Date "2023.11.07"]
[WhiteClock "0:00:00"]
[BlackClock "0:00:13"]
[Board "90"]

1. d4 {[%clk 0:03:00]}  Nf6 {[%clk 0:02:58]} 2. c4 {[%clk 0:02:59]}  c5 {[%clk 0:02:58]} 3. Nf3 {[%clk 0:02:57]}  cxd4 {[%clk 0:02:58]} 4. Nxd4 {[%clk 0:02:57]}  g6 {[%clk 0:02:59]} 5. g3 {[%clk 0:02:54]}  Bg7 {[%clk 0:02:59]} 6. Bg2 {[%clk 0:02:52]}  O-O {[%clk 0:02:59]} 7. O-O {[%clk 0:02:52]}  Nc6 {[%clk 0:03:00]} 8. e3 {[%clk 0:02:49]}  a6 {[%clk 0:02:43]} 9. a3 {[%clk 0:02:41]}  Qc7 {[%clk 0:02:40]} 10. b4 {[%clk 0:02:26]}  Nxd4 {[%clk 0:02:37]} 11. exd4 {[%clk 0:02:12]}  Qxc4 {[%clk 0:02:37]} 12. Bb2 {[%clk 0:02:03]}  d5 {[%clk 0:02:31]} 13. Nd2 {[%clk 0:01:58]}  Qc7 {[%clk 0:02:26]} 14. Nb3 {[%clk 0:01:54]}  Bf5 {[%clk 0:01:58]} 15. Rc1 {[%clk 0:01:51]}  Qd6 {[%clk 0:01:55]} 16. Nc5 {[%clk 0:01:47]}  Rfb8 {[%clk 0:01:52]} 17. Re1 {[%clk 0:01:39]}  b6 {[%clk 0:01:50]} 18. Nd3 {[%clk 0:01:36]}  Bxd3 {[%clk 0:01:33]} 19. Qxd3 {[%clk 0:01:35]}  e6 {[%clk 0:01:33]} 20. Rc2 {[%clk 0:01:31]}  Nd7 {[%clk 0:00:50]} 21. Rec1 {[%clk 0:01:30]}  b5 {[%clk 0:00:49]} 22. Rc6 {[%clk 0:01:29]}  Qf8 {[%clk 0:00:47]} 23. Rc7 {[%clk 0:01:24]}  Nb6 {[%clk 0:00:47]} 24. Bf1 {[%clk 0:01:18]}  Nc4 {[%clk 0:00:46]} 25. Qc2 {[%clk 0:00:56]}  Qd8 {[%clk 0:00:44]} 26. Rc6 {[%clk 0:00:49]}  Qd7 {[%clk 0:00:43]} 27. Rc5 {[%clk 0:00:47]}  Bf8 {[%clk 0:00:42]} 28. Bxc4 {[%clk 0:00:40]}  dxc4 {[%clk 0:00:32]} 29. Re5 {[%clk 0:00:27]}  Bg7 {[%clk 0:00:30]} 30. Re4 {[%clk 0:00:25]}  Rd8 {[%clk 0:00:29]} 31. Rd1 {[%clk 0:00:24]}  Qd5 {[%clk 0:00:28]} 32. Qe2 {[%clk 0:00:19]}  e5 {[%clk 0:00:20]} 33. Bc3 {[%clk 0:00:13]}  f5 {[%clk 0:00:18]} 34. Rh4 {[%clk 0:00:08]}  Bf6 {[%clk 0:00:14]} 35. Rh6 {[%clk 0:00:07]}  exd4 {[%clk 0:00:14]} 36. Bd2 {[%clk 0:00:06]}  d3 {[%clk 0:00:14]} 37. Bf4 {[%clk 0:00:05]}  dxe2 {[%clk 0:00:12]} 38. Rxd5 {[%clk 0:00:06]}  e1=Q+ {[%clk 0:00:12]} 39. Kg2 {[%clk 0:00:06]}  Qe4+ {[%clk 0:00:12]} 40. f3 {[%clk 0:00:00]}  Qxd5 {[%clk 0:00:13]} 0-1


[Site "https://www.chess.com"]

[Event "Titled Tuesday Blitz November 07 Late 2023"]
[White "Powell, Paul"]
[Black "Desideri, Ricardo Maruchi"]
[WhiteFideId "2005840"]
[BlackFideId "2110440"]
[WhiteElo "2078"]
[BlackElo "2006"]
[Result "1-0"]
[Round "10"]
[TimeControl "180+1"]
[Date "2023.11.07"]
[WhiteClock "0:00:24"]
[BlackClock "0:00:00"]
[Board "93"]

1. d4 {[%clk 0:03:00]}  Nf6 {[%clk 0:02:39]} 2. Nf3 {[%clk 0:02:59]}  g6 {[%clk 0:02:37]} 3. Bf4 {[%clk 0:02:56]}  Bg7 {[%clk 0:02:37]} 4. e3 {[%clk 0:02:51]}  d6 {[%clk 0:02:36]} 5. Be2 {[%clk 0:02:51]}  Nc6 {[%clk 0:02:35]} 6. O-O {[%clk 0:02:51]}  O-O {[%clk 0:02:31]} 7. c4 {[%clk 0:02:51]}  Nd7 {[%clk 0:02:29]} 8. Bg3 {[%clk 0:02:48]}  e5 {[%clk 0:02:27]} 9. Nc3 {[%clk 0:02:48]}  a6 {[%clk 0:02:22]} 10. Rc1 {[%clk 0:02:46]}  h6 {[%clk 0:02:18]} 11. a3 {[%clk 0:02:45]}  f5 {[%clk 0:02:14]} 12. h3 {[%clk 0:02:44]}  f4 {[%clk 0:02:10]} 13. Bh2 {[%clk 0:02:43]}  g5 {[%clk 0:02:02]} 14. dxe5 {[%clk 0:02:39]}  dxe5 {[%clk 0:02:01]} 15. exf4 {[%clk 0:02:38]}  exf4 {[%clk 0:02:00]} 16. Bd3 {[%clk 0:02:37]}  Nde5 {[%clk 0:01:49]} 17. Nxe5 {[%clk 0:02:34]}  Nxe5 {[%clk 0:01:48]} 18. Be4 {[%clk 0:02:29]}  Qf6 {[%clk 0:01:43]} 19. Nd5 {[%clk 0:02:26]}  Qf7 {[%clk 0:01:41]} 20. c5 {[%clk 0:02:19]}  Be6 {[%clk 0:01:34]} 21. Nc3 {[%clk 0:02:13]}  Rad8 {[%clk 0:01:30]} 22. Qc2 {[%clk 0:02:12]}  Rd4 {[%clk 0:01:17]} 23. b4 {[%clk 0:01:51]}  Rfd8 {[%clk 0:01:14]} 24. Qb1 {[%clk 0:01:39]}  Nc4 {[%clk 0:01:03]} 25. Bg6 {[%clk 0:01:21]}  Qd7 {[%clk 0:00:52]} 26. Ne4 {[%clk 0:01:15]}  Bd5 {[%clk 0:00:39]} 27. Nc3 {[%clk 0:00:45]}  Bc6 {[%clk 0:00:32]} 28. Qf5 {[%clk 0:00:35]}  Qxf5 {[%clk 0:00:24]} 29. Bxf5 {[%clk 0:00:35]}  Nd2 {[%clk 0:00:17]} 30. Rfe1 {[%clk 0:00:35]}  f3 {[%clk 0:00:15]} 31. Bxc7 {[%clk 0:00:28]}  Rf8 {[%clk 0:00:15]} 32. Be6+ {[%clk 0:00:25]}  Kh8 {[%clk 0:00:16]} 33. g3 {[%clk 0:00:24]}  h5 {[%clk 0:00:03]} 34. Bd6 {[%clk 0:00:24]}  Re8 {[%clk 0:00:00]} 35. Bf7 {[%clk 0:00:24]} 1-0


[Site "https://www.chess.com"]